fUSD/lending_fUSD_20240803
["ID","MTS","AMOUNT","RATE_DAILY","PERIOD"]
[333985245,1722666686508,-511.02256997,0.00016986,2]
[333985246,1722666686518,-500.0,0.00016986,2]
[333985247,1722666686528,-500.0,0.00016986,2]
[333985248,1722666686539,-989.73,0.00016986,2]
[333985249,1722666686549,-788.91,0.00016986,2]
[333985250,1722666686558,-493.35409371,0.00016986,2]
[333985251,1722666686568,-405.01222047,0.00016986,2]
[333985252,1722666686578,-500.0,0.00016986,2]
[333985253,1722666686588,-500.0,0.00016986,2]
[333985254,1722666686598,-510.18418284,0.00016986,2]
[333985255,1722666686608,-500.0,0.00016986,2]
[333985256,1722666686617,-237.05,0.00016986,2]
[333985257,1722666686626,-237.05,0.00016986,2]
[333985258,1722666686639,-237.05,0.00016986,2]
[333985259,1722666686649,-237.05,0.00016986,2]
[333985260,1722666686658,-500.0,0.00016986,2]
[333985261,1722666686669,-788.504572,0.00016986,2]
[333985262,1722666686679,-788.504572,0.00016986,2]
[333985263,1722666686691,-788.504572,0.00016986,2]
[333985264,1722666686700,-788.504572,0.00016986,2]
[333985265,1722666686711,-500.0,0.00016986,2]
[333985266,1722666686721,-500.0,0.00016986,2]
[333985267,1722666686731,-151.0,0.00016986,2]
[333985268,1722666686740,-151.0,0.00016986,2]
[333985269,1722666686750,-500.0,0.00016986,2]
[333985270,1722666686759,-500.0,0.00016986,2]
[333985271,1722666686769,-500.0,0.00016986,2]
[333985272,1722666686779,-504.9248671,0.00016986,2]
[333985273,1722666686788,-486.28222735,0.00016986,2]
[333985274,1722666686798,-567.17,0.00016986,2]
[333985275,1722666686807,-500.0,0.00016986,2]
[333985276,1722666686817,-500.0,0.00016986,2]
[333985277,1722666686827,-500.0,0.00016986,2]
[333985278,1722666686836,-500.0,0.00016986,2]
[333985279,1722666686846,-500.0,0.00016986,2]
[333985280,1722666686856,-500.0,0.00016986,2]
[333985281,1722666686866,-511.34160748,0.00016986,2]
[333985282,1722666686876,-1103.75,0.00016986,2]
[333985283,1722666686886,-1066.77,0.00016986,2]
[333985284,1722666686896,-500.0,0.00016986,2]
[333985285,1722666686905,-500.0,0.00016986,2]
[333985286,1722666686915,-510.52018812,0.00016986,2]
[333985287,1722666686924,-500.0,0.00016986,2]
[333985288,1722666686934,-593.51,0.00016986,2]
[333985289,1722666686949,-500.0,0.00016986,2]
[333985290,1722666686959,-766.07,0.00016986,2]
[333985291,1722666686969,-588.50376703,0.00016986,2]
[333985292,1722666686979,-758.83,0.00016986,2]
[333985293,1722666686989,-506.52388492,0.00016986,2]
[333985294,1722666687000,-506.94230924,0.00016986,2]
[333985295,1722666687010,-500.0,0.00016986,2]
[333985296,1722666687020,-500.0,0.00016986,2]
[333985297,1722666687030,-1147.83,0.00016986,2]
[333985298,1722666687040,-500.0,0.00016986,2]
[333985299,1722666687051,-569.94,0.00016986,2]
[333985300,1722666687062,-500.0,0.00016986,2]
[333985301,1722666687072,-500.0,0.00016986,2]
[333985302,1722666687083,-500.0,0.00016986,2]
[333985303,1722666687093,-500.0,0.00016986,2]
[333985304,1722666687103,-500.0,0.00016986,2]
[333985305,1722666687113,-500.0,0.00016986,2]
[333985306,1722666687122,-500.0,0.00016986,2]
[333985307,1722666687132,-500.0,0.00016986,2]
[333985308,1722666687141,-500.0,0.00016986,2]
[333985309,1722666687151,-500.0,0.00016986,2]
[333985310,1722666687162,-500.0,0.00016986,2]
[333985311,1722666687171,-500.0,0.00016986,2]
[333985312,1722666687181,-500.0,0.00016986,2]
[333985313,1722666687193,-502.76299916,0.00016986,2]
[333985314,1722666687203,-500.0,0.00016986,2]
[333985315,1722666687213,-500.0,0.00016986,2]
[333985316,1722666687223,-500.0,0.00016986,2]
[333985317,1722666687232,-500.0,0.00016986,2]
[333985318,1722666687242,-500.0,0.00016986,2]
[333985319,1722666687252,-500.0,0.00016986,2]
[333985320,1722666687262,-500.0,0.00016986,2]
[333985321,1722666687272,-505.12797463,0.00016986,2]
[333985322,1722666687281,-500.0,0.00016986,2]
[333985323,1722666687291,-500.0,0.00016986,2]
[333985324,1722666687300,-500.0,0.00016986,2]
[333985325,1722666687310,-500.0,0.00016986,2]
[333985326,1722666687319,-500.0,0.00016986,2]
[333985327,1722666687329,-800.64,0.00016986,2]
[333985328,1722666687339,-500.0,0.00016986,2]
[333985329,1722666687349,-500.0,0.00016986,2]
[333985330,1722666687359,-715.96,0.00016986,2]
[333985331,1722666687368,-500.0,0.00016986,2]
[333985332,1722666687378,-512.92565903,0.00016986,2]
[333985333,1722666687388,-500.0,0.00016986,2]
[333985334,1722666687398,-500.0,0.00016986,2]
[333985335,1722666687408,-512.57341223,0.00016986,2]
[333985336,1722666687418,-500.0,0.00016986,2]
[333985337,1722666687429,-500.0,0.00016986,2]
[333985338,1722666687441,-517.53,0.00016986,2]
[333985339,1722666687451,-500.0,0.00016986,2]
[333985340,1722666687461,-151.0,0.00016986,2]
[333985341,1722666687471,-151.0,0.00016986,2]
[333985342,1722666687482,-702.72,0.00016986,2]
[333985343,1722666687492,-500.0,0.00016986,2]
[333985344,1722666687503,-500.0,0.00016986,2]
[333985345,1722666687513,-500.0,0.00016986,2]
[333985346,1722666687523,-505.99287757,0.00016986,2]
[333985347,1722666687534,-937.04,0.00016986,2]
[333985348,1722666687544,-500.0,0.00016986,2]
[333985349,1722666687554,-500.0,0.00016986,2]
[333985350,1722666687564,-500.0,0.00016986,2]
[333985351,1722666687575,-500.0,0.00016986,2]
[333985352,1722666687585,-500.0,0.00016986,2]
[333985353,1722666687594,-518.28861961,0.00016986,2]
[333985354,1722666687604,-612.66913431,0.00016986,2]
[333985355,1722666687614,-500.0,0.00016986,2]
[333985356,1722666687625,-500.0,0.00016986,2]
[333985357,1722666687638,-500.0,0.00016986,2]
[333985358,1722666687648,-500.0,0.00016986,2]
[333985359,1722666687657,-500.0,0.00016986,2]
[333985360,1722666687667,-500.0,0.00016986,2]
[333985361,1722666687678,-887.0,0.00016986,2]
[333985362,1722666687690,-509.70855764,0.00016986,2]
[333985363,1722666687700,-500.0,0.00016986,2]
[333985364,1722666687712,-810.08,0.00016986,2]
[333985365,1722666687722,-500.0,0.00016986,2]
[333985366,1722666687731,-500.0,0.00016986,2]
[333985367,1722666687741,-544.56,0.00016986,2]
[333985368,1722666687751,-451.23799115,0.00016986,2]
[333985369,1722666687761,-500.0,0.00016986,2]
[333985370,1722666687772,-500.0,0.00016986,2]
[333985371,1722666687781,-603.96,0.00016986,2]
[333985372,1722666687792,-500.0,0.00016986,2]
[333985373,1722666687802,-500.0,0.00016986,2]
[333985374,1722666687811,-500.0,0.00016986,2]
[333985375,1722666687821,-500.0,0.00016986,2]
[333985376,1722666687831,-500.0,0.00016986,2]
[333985377,1722666687841,-500.0,0.00016986,2]
[333985378,1722666687851,-500.0,0.00016986,2]
[333985379,1722666687861,-500.0,0.00016986,2]
[333985380,1722666687871,-151.0,0.00016986,2]
[333985381,1722666687881,-191.4,0.00016986,2]
[333985382,1722666687891,-1120.78,0.00016986,2]
[333985383,1722666687900,-500.0,0.00016986,2]
[333985384,1722666687911,-794.41,0.00016986,2]
[333985385,1722666687921,-500.0,0.00016986,2]
[333985386,1722666687931,-500.0,0.00016986,2]
[333985387,1722666687942,-500.0,0.00016986,2]
[333985388,1722666687952,-500.0,0.00016986,2]
[333985389,1722666687962,-1111.45,0.00016986,2]
[333985390,1722666687972,-500.0,0.00016986,2]
[333985391,1722666687982,-500.0,0.00016986,2]
[333985392,1722666687992,-151.0,0.00016986,2]
[333985393,1722666688003,-500.0,0.00016986,2]
[333985394,1722666688013,-203.89236158,0.00016986,2]
[333985395,1722666688023,-500.0,0.00016986,2]
[333985396,1722666688033,-633.16,0.00016986,2]
[333985397,1722666688043,-500.0,0.00016986,2]
[333985398,1722666688053,-500.0,0.00016986,2]
[333985399,1722666688063,-500.0,0.00016986,2]
[333985400,1722666688074,-574.05487281,0.00016986,2]
[333985401,1722666688084,-500.0,0.00016986,2]
[333985402,1722666688095,-742.79,0.00016986,2]
[333985403,1722666688105,-500.0,0.00016986,2]
[333985404,1722666688115,-500.0,0.00016986,2]
[333985405,1722666688124,-519.83009682,0.00016986,2]
[333985406,1722666688134,-500.0,0.00016986,2]
[333985407,1722666688144,-500.0,0.00016986,2]
[333985408,1722666688155,-466.122221,0.00016986,2]
[333985409,1722666688165,-1144.59,0.00016986,2]
[333985410,1722666688175,-511.73920403,0.00016986,2]
[333985411,1722666688186,-500.0,0.00016986,2]
[333985412,1722666688196,-500.0,0.00016986,2]
[333985413,1722666688206,-500.41,0.00016986,2]
[333985414,1722666688216,-466.122221,0.00016986,2]
[333985415,1722666688226,-500.0,0.00016986,2]
[333985416,1722666688236,-500.0,0.00016986,2]
[333985417,1722666688246,-591.2,0.00016986,2]
[333985418,1722666688256,-500.0,0.00016986,2]
[333985419,1722666688267,-500.0,0.00016986,2]
[333985420,1722666688278,-251.8301781,0.00016986,2]
[333985421,1722666688290,-500.0,0.00016986,2]
[333985422,1722666688300,-535.54111957,0.00016986,2]
[333985423,1722666688311,-520.35272233,0.00016986,2]
[333985424,1722666688321,-508.44574006,0.00016986,2]
[333985425,1722666688331,-800.028529,0.00016986,2]
[333985426,1722666688342,-500.0,0.00016986,2]
[333985427,1722666688353,-514.88970737,0.00016986,2]
[333985428,1722666688363,-500.0,0.00016986,2]
[333985429,1722666688373,-301.11051,0.00016986,2]
[333985430,1722666688384,-800.028529,0.00016986,2]
[333985431,1722666688395,-500.0,0.00016986,2]
[333985432,1722666688405,-500.0,0.00016986,2]
[333985433,1722666688415,-500.0,0.00016986,2]
[333985434,1722666688426,-667.95,0.00016986,2]
[333985435,1722666688438,-500.0,0.00016986,2]
[333985436,1722666688449,-500.0,0.00016986,2]
[333985437,1722666688459,-500.0,0.00016986,2]
[333985438,1722666688469,-507.88080329,0.00016986,2]
[333985439,1722666688480,-710.02,0.00016986,2]
[333985440,1722666688489,-1017.87,0.00016986,2]
[333985441,1722666688500,-586.31,0.00016986,2]
[333985442,1722666688511,-500.0,0.00016986,2]
[333985443,1722666688521,-1326.03,0.00016986,2]
[333985444,1722666688532,-628.24,0.00016986,2]
[333985445,1722666688543,-689.07,0.00016986,2]
[333985446,1722666688554,-500.0,0.00016986,2]
[333985447,1722666688564,-500.0,0.00016986,2]
[333985448,1722666688574,-500.0,0.00016986,2]
[333985449,1722666688585,-554.01,0.00016986,2]
[333985450,1722666688595,-525.679238,0.00016986,2]
[333985451,1722666688606,-500.0,0.00016986,2]
[333985452,1722666688616,-500.0,0.00016986,2]
[333985453,1722666688626,-500.0,0.00016986,2]
[333985454,1722666688640,-500.0,0.00016986,2]
[333985455,1722666688650,-500.0,0.00016986,2]
[333985456,1722666688660,-525.679238,0.00016986,2]
[333985457,1722666688671,-500.0,0.00016986,2]
[333985458,1722666688681,-835.2,0.00016986,2]
[333985459,1722666688693,-500.0,0.00016986,2]
[333985460,1722666688703,-2054.066293,0.00016986,2]
[333985461,1722666688715,-541.45,0.00016986,2]
[333985462,1722666688725,-151.0,0.00016986,2]
[333985463,1722666688735,-500.0,0.00016986,2]
[333985464,1722666688746,-151.0,0.00016986,2]
[333985465,1722666688756,-500.0,0.00016986,2]
[333985466,1722666688767,-500.0,0.00016986,2]
[333985467,1722666688777,-1060.7,0.00016986,2]
[333985468,1722666688787,-511.13794341,0.00016986,2]
[333985469,1722666688799,-561.25,0.00016986,2]
[333985470,1722666688809,-573.22,0.00016986,2]
[333985471,1722666688819,-500.0,0.00016986,2]
[333985472,1722666688830,-500.0,0.00016986,2]
[333985473,1722666688840,-245.84902318,0.00016986,2]
[333985474,1722666688850,-500.0,0.00016986,2]
[333985475,1722666688860,-686.47,0.00016986,2]
[333985476,1722666688870,-500.0,0.00016986,2]
[333985477,1722666688879,-500.0,0.00016986,2]
[333985478,1722666688889,-500.0,0.00016986,2]
[333985479,1722666688899,-1223.77,0.00016986,2]
[333985480,1722666688908,-536.51,0.00016986,2]
[333985481,1722666688918,-500.0,0.00016986,2]
[333985482,1722666688928,-500.0,0.00016986,2]
[333985483,1722666688939,-500.0,0.00016986,2]
[333985484,1722666688950,-500.0,0.00016986,2]
[333985485,1722666688960,-500.0,0.00016986,2]
[333985486,1722666688971,-500.0,0.00016986,2]
[333985487,1722666688982,-500.0,0.00016986,2]
[333985488,1722666688993,-195.068578,0.00016986,2]
[333985489,1722666689003,-195.068578,0.00016986,2]
[333985490,1722666689014,-500.0,0.00016986,2]
[333985491,1722666689026,-151.0,0.00016986,2]
[333985492,1722666689036,-151.0,0.00016986,2]
[333985493,1722666689047,-500.0,0.00016986,2]
[333985494,1722666689057,-195.068578,0.00016986,2]
[333985495,1722666689068,-1013.66,0.00016986,2]
[333985496,1722666689079,-195.068578,0.00016986,2]
[333985497,1722666689089,-500.0,0.00016986,2]
[333985498,1722666689099,-581.73,0.00016986,2]
[333985499,1722666689110,-516.58165795,0.00016986,2]
[333985500,1722666689120,-641.24264955,0.00016986,2]
[333985501,1722666689130,-500.0,0.00016986,2]
[333985502,1722666689140,-500.0,0.00016986,2]
[333985503,1722666689150,-500.0,0.00016986,2]
[333985504,1722666689160,-500.0,0.00016986,2]
[333985505,1722666689170,-500.0,0.00016986,2]
[333985506,1722666689483,-500.0,0.00016986,2]
[333985507,1722666689495,-500.0,0.00016986,2]
[333985508,1722666689505,-500.0,0.00016986,2]
[333985509,1722666689517,-818.75,0.00016986,2]
[333985510,1722666689526,-500.0,0.00016986,2]
[333985511,1722666689537,-509.73735457,0.00016986,2]
[333985512,1722666689546,-509.67006548,0.00016986,2]
[333985513,1722666689556,-500.0,0.00016986,2]
[333985514,1722666689565,-304.40350264,0.00016986,2]
[333985515,1722666689576,-500.0,0.00016986,2]
[333985516,1722666689587,-500.0,0.00016986,2]
[333985517,1722666689598,-500.0,0.00016986,2]
[333985518,1722666689608,-503.83152997,0.00016986,2]
[333985519,1722666689618,-500.0,0.00016986,2]
[333985520,1722666689628,-151.0,0.00016986,2]
[333985521,1722666689641,-151.0,0.00016986,2]
[333985522,1722666689650,-500.0,0.00016986,2]
[333985523,1722666689660,-500.0,0.00016986,2]
[333985524,1722666689669,-500.0,0.00016986,2]
[333985525,1722666689679,-506.31672439,0.00016986,2]
[333985526,1722666689693,-500.0,0.00016986,2]
[333985527,1722666689703,-151.0,0.00016986,2]
[333985528,1722666689715,-151.0,0.00016986,2]
[333985529,1722666689725,-500.0,0.00016986,2]
[333985530,1722666689734,-151.0,0.00016986,2]
[333985531,1722666689744,-500.0,0.00016986,2]
[333985532,1722666689755,-151.0,0.00016986,2]
[333985533,1722666689764,-500.0,0.00016986,2]
[333985534,1722666689774,-500.0,0.00016986,2]
[333985535,1722666689784,-500.0,0.00016986,2]
[333985536,1722666689794,-500.0,0.00016986,2]
[333985537,1722666689804,-500.0,0.00016986,2]
[333985538,1722666689813,-500.0,0.00016986,2]
[333985539,1722666689823,-500.0,0.00016986,2]
[333985540,1722666689832,-500.0,0.00016986,2]
[333985541,1722666689842,-899.56,0.00016986,2]
[333985542,1722666689852,-500.0,0.00016986,2]
[333985543,1722666689861,-500.0,0.00016986,2]
[333985544,1722666689871,-151.0,0.00016986,2]
[333985545,1722666689880,-151.0,0.00016986,2]
[333985546,1722666689890,-500.0,0.00016986,2]
[333985547,1722666689899,-151.0,0.00016986,2]
[333985548,1722666689909,-500.0,0.00016986,2]
[333985549,1722666689919,-1080.66,0.00016986,2]
[333985550,1722666689928,-151.0,0.00016986,2]
[333985551,1722666689938,-506.07052081,0.00016986,2]
[333985552,1722666689947,-500.0,0.00016986,2]
[333985553,1722666689957,-500.0,0.00016986,2]
[333985554,1722666689967,-500.0,0.00016986,2]
[333985555,1722666689977,-500.0,0.00016986,2]
[333985556,1722666689988,-500.0,0.00016986,2]
[333985557,1722666689997,-500.0,0.00016986,2]
[333985558,1722666690007,-151.350452,0.00016986,2]
[333985559,1722666690017,-500.0,0.00016986,2]
[333985560,1722666690027,-500.0,0.00016986,2]
[333985561,1722666690036,-500.0,0.00016986,2]
[333985562,1722666690046,-500.0,0.00016986,2]
[333985563,1722666690056,-713.4,0.00016986,2]
[333985564,1722666690066,-500.0,0.00016986,2]
[333985565,1722666690076,-500.0,0.00016986,2]
[333985566,1722666690085,-500.0,0.00016986,2]
[333985567,1722666690095,-151.0,0.00016986,2]
[333985568,1722666690105,-151.0,0.00016986,2]
[333985569,1722666690115,-513.0,0.00016986,2]
[333985570,1722666690125,-151.0,0.00016986,2]
[333985571,1722666690135,-151.0,0.00016986,2]
[333985572,1722666690146,-1040.19,0.00016986,2]
[333985573,1722666690156,-151.0,0.00016986,2]
[333985574,1722666690166,-511.59751816,0.00016986,2]
[333985575,1722666690176,-151.0,0.00016986,2]
[333985576,1722666690187,-500.0,0.00016986,2]
[333985577,1722666690198,-500.0,0.00016986,2]
[333985578,1722666690208,-992.68,0.00016986,2]
[333985579,1722666690218,-500.0,0.00016986,2]
[333985580,1722666690228,-521.61,0.00016986,2]
[333985581,1722666690238,-500.0,0.00016986,2]
[333985582,1722666690248,-503.15221297,0.00016986,2]
[333985583,1722666690258,-577.74,0.00016986,2]
[333985584,1722666690268,-500.0,0.00016986,2]
[333985585,1722666690278,-500.0,0.00016986,2]
[333985586,1722666690287,-500.0,0.00016986,2]
[333985587,1722666690298,-645.01,0.00016986,2]
[333985588,1722666690308,-500.0,0.00016986,2]
[333985589,1722666690318,-500.0,0.00016986,2]
[333985590,1722666690327,-500.0,0.00016986,2]
[333985591,1722666690337,-510.7857716,0.00016986,2]
[333985592,1722666690346,-500.0,0.00016986,2]
[333985593,1722666690356,-500.0,0.00016986,2]
[333985594,1722666690366,-500.0,0.00016986,2]
[333985595,1722666690376,-500.0,0.00016986,2]
[333985596,1722666690387,-500.0,0.00016986,2]
[333985597,1722666690397,-500.0,0.00016986,2]
[333985598,1722666690406,-775.07,0.00016986,2]
[333985599,1722666690416,-500.0,0.00016986,2]
[333985600,1722666690426,-968.44,0.00016986,2]
[333985601,1722666690436,-500.0,0.00016986,2]
[333985602,1722666690446,-1060.45,0.00016986,2]
[333985603,1722666690456,-500.0,0.00016986,2]
[333985604,1722666690466,-502.12012926,0.00016986,2]
[333985605,1722666690476,-925.11,0.00016986,2]
[333985606,1722666690486,-500.0,0.00016986,2]
[333985607,1722666690496,-455.89463468,0.00016986,2]
[333985608,1722666690507,-500.0,0.00016986,2]
[333985609,1722666690517,-151.0,0.00016986,2]
[333985610,1722666690527,-889.34,0.00016986,2]
[333985611,1722666690537,-500.0,0.00016986,2]
[333985612,1722666690547,-500.0,0.00016986,2]
[333985613,1722666690557,-500.0,0.00016986,2]
[333985614,1722666690567,-500.0,0.00016986,2]
[333985615,1722666690577,-500.0,0.00016986,2]
[333985616,1722666690587,-500.0,0.00016986,2]
[333985617,1722666690597,-593.73,0.00016986,2]
[333985618,1722666690607,-500.0,0.00016986,2]
[333985619,1722666690618,-500.0,0.00016986,2]
[333985620,1722666690628,-500.0,0.00016986,2]
[333985621,1722666690642,-500.0,0.00016986,2]
[333985622,1722666690651,-500.0,0.00016986,2]
[333985623,1722666690661,-997.26,0.00016986,2]
[333985624,1722666690671,-500.0,0.00016986,2]
[333985625,1722666690681,-637.94,0.00016986,2]
[333985626,1722666690693,-1442.56,0.00016986,2]
[333985627,1722666690703,-720.84,0.00016986,2]
[333985628,1722666690717,-500.0,0.00016986,2]
[333985629,1722666690728,-500.0,0.00016986,2]
[333985630,1722666690738,-500.0,0.00016986,2]
[333985631,1722666690747,-600.01,0.00016986,2]
[333985632,1722666690757,-500.0,0.00016986,2]
[333985633,1722666690767,-959.37,0.00016986,2]
[333985634,1722666690776,-500.0,0.00016986,2]
[333985635,1722666690786,-392.00478908,0.00016986,2]
[333985636,1722666690796,-590.48,0.00016986,2]
[333985637,1722666690806,-539.49,0.00016986,2]
[333985638,1722666690815,-500.0,0.00016986,2]
[333985639,1722666690825,-300.0,0.00016986,2]
[333985640,1722666690835,-500.0,0.00016986,2]
[333985641,1722666690845,-1113.83,0.00016986,2]
[333985642,1722666690855,-500.0,0.00016986,2]
[333985643,1722666690865,-500.0,0.00016986,2]
[333985644,1722666690876,-500.0,0.00016986,2]
[333985645,1722666690887,-663.54,0.00016986,2]
[333985646,1722666690899,-500.0,0.00016986,2]
[333985647,1722666690908,-668.52,0.00016986,2]
[333985648,1722666690918,-500.0,0.00016986,2]
[333985649,1722666690927,-500.0,0.00016986,2]
[333985650,1722666690937,-500.0,0.00016986,2]
[333985651,1722666690947,-424.39,0.00016986,2]
[333985652,1722666690957,-500.0,0.00016986,2]
[333985653,1722666690967,-500.0,0.00016986,2]
[333985654,1722666690977,-1284.57,0.00016986,2]
[333985655,1722666690986,-500.0,0.00016986,2]
[333985656,1722666690996,-729.2,0.00016986,2]
[333985657,1722666691006,-500.0,0.00016986,2]
[333985658,1722666691015,-500.0,0.00016986,2]
[333985659,1722666691025,-1148.49,0.00016986,2]
[333985660,1722666691035,-500.0,0.00016986,2]
[333985661,1722666691044,-500.0,0.00016986,2]
[333985662,1722666691054,-650.33,0.00016986,2]
[333985663,1722666691064,-375.17576,0.00016986,2]
[333985664,1722666691074,-375.17576,0.00016986,2]
[333985665,1722666691084,-527.89,0.00016986,2]
[333985666,1722666691094,-500.0,0.00016986,2]
[333985667,1722666691104,-1657.53,0.00016986,2]
[333985668,1722666691114,-643.1,0.00016986,2]
[333985669,1722666691123,-500.0,0.00016986,2]
[333985670,1722666691134,-500.0,0.00016986,2]
[333985671,1722666691143,-1385.68,0.00016986,2]
[333985672,1722666691153,-691.5,0.00016986,2]
[333985673,1722666691162,-375.17576,0.00016986,2]
[333985674,1722666691172,-500.0,0.00016986,2]
[333985675,1722666691181,-375.17576,0.00016986,2]
[333985676,1722666691191,-186.25837,0.00016986,2]
[333985677,1722666691200,-534.08,0.00016986,2]
[333985678,1722666691209,-186.25837,0.00016986,2]
[333985679,1722666691219,-500.0,0.00016986,2]
[333985680,1722666691229,-500.0,0.00016986,2]
[333985681,1722666691239,-500.0,0.00016986,2]
[333985682,1722666691248,-923.84,0.00016986,2]
[333985683,1722666691257,-1314.98,0.00016986,2]
[333985684,1722666691267,-500.0,0.00016986,2]
[333985685,1722666691277,-186.25837,0.00016986,2]
[333985686,1722666691286,-891.69,0.00016986,2]
[333985687,1722666691295,-186.25837,0.00016986,2]
[333985688,1722666691305,-1413.97,0.00016986,2]
[333985689,1722666691315,-500.0,0.00016986,2]
[333985690,1722666691324,-518.53,0.00016986,2]
[333985691,1722666691334,-500.0,0.00016986,2]
[333985692,1722666691343,-500.0,0.00016986,2]
[333985693,1722666691353,-1485.86,0.00016986,2]
[333985694,1722666691362,-500.0,0.00016986,2]
[333985695,1722666691372,-500.0,0.00016986,2]
[333985696,1722666691382,-1833.06,0.00016986,2]
[333985697,1722666691391,-679.92,0.00016986,2]
[333985698,1722666691400,-202.71,0.00016986,2]
[333985699,1722666691410,-500.0,0.00016986,2]
[333985700,1722666691419,-500.0,0.00016986,2]
[333985701,1722666691428,-1000.0,0.00016986,2]
[333985702,1722666691440,-500.0,0.00016986,2]
[333985703,1722666691450,-500.0,0.00016986,2]
[333985704,1722666691459,-500.0,0.00016986,2]
[333985705,1722666691468,-557.98,0.00016986,2]
[333985706,1722666691478,-528.86,0.00016986,2]
[333985707,1722666691487,-1392.35,0.00016986,2]
[333985708,1722666691496,-500.0,0.00016986,2]
[333985709,1722666691506,-500.0,0.00016986,2]
[333985710,1722666691515,-500.0,0.00016986,2]
[333985711,1722666691525,-500.0,0.00016986,2]
[333985712,1722666691534,-1099.4,0.00016986,2]
[333985713,1722666691543,-500.0,0.00016986,2]
[333985714,1722666691552,-500.0,0.00016986,2]
[333985715,1722666691562,-500.0,0.00016986,2]
[333985716,1722666691571,-1735.04,0.00016986,2]
[333985717,1722666691580,-500.0,0.00016986,2]
[333985718,1722666691590,-500.0,0.00016986,2]
[333985719,1722666691599,-505.74,0.00016986,2]
[333985720,1722666691609,-516.73,0.00016986,2]
[333985721,1722666691618,-587.0,0.00016986,2]
[333985722,1722666691628,-866.45,0.00016986,2]
[333985723,1722666691639,-500.0,0.00016986,2]
[333985724,1722666691649,-500.0,0.00016986,2]
[333985725,1722666691659,-500.0,0.00016986,2]
[333985726,1722666691669,-500.0,0.00016986,2]
[333985727,1722666691679,-563.21,0.00016986,2]
[333985728,1722666691689,-500.0,0.00016986,2]
[333985729,1722666691699,-540.15,0.00016986,2]
[333985730,1722666691708,-500.0,0.00016986,2]
[333985731,1722666691719,-500.0,0.00016986,2]
[333985732,1722666691728,-647.2,0.00016986,2]
[333985733,1722666691737,-500.0,0.00016986,2]
[333985734,1722666691747,-517.32344376,0.00016986,2]
[333985735,1722666691756,-500.0,0.00016986,2]
[333985736,1722666691765,-500.0,0.00016986,2]
[333985737,1722666691774,-500.0,0.00016986,2]
[333985738,1722666691783,-500.0,0.00016986,2]
[333985739,1722666691793,-1057.56,0.00016986,2]
[333985740,1722666691802,-554.21,0.00016986,2]
[333985741,1722666691811,-500.0,0.00016986,2]
[333985742,1722666691821,-500.0,0.00016986,2]
[333985743,1722666691830,-151.0,0.00016986,2]
[333985744,1722666691948,-500.0,0.00016986,2]